[Event "Belgrade Spring Open 2021"]
[Site "Belgrade"]
[Date "2021.04.05"]
[Round "5.6"]
[White "Pasti, Aron"]
[Black "Draskovic, Luka"]
[Result "1/2-1/2"]
[ECO "C41"]
[WhiteElo "2231"]
[BlackElo "2472"]
[Annotator "ChessBase"]
[PlyCount "80"]
[EventDate "2021.04.02"]
[EventType "swiss"]
[EventCountry "SRB"]
[SourceTitle "playchess.com"]
[Source "ChessBase"]
[SourceQuality "1"]
[TimeControl "5400+30"]

1. e4 {[%emt 0:00:00]} d6 {[%emt 0:00:00]} 2. d4 {[%emt 0:00:00]} Nf6 {[%emt 0:00:00]} 3. Nc3 {[%emt 0:00:00]} Nbd7 {[%emt 0:00:52]} 4. Nf3 {[%emt 0:00:39]} e5 {[%emt 0:00:08]} 5. Bc4 {[%emt 0:00:42]} Be7 {[%emt 0:00:07]} 6. O-O {[%emt 0:00:13]} O-O {[%emt 0:02:33]} 7. Re1 {[%emt 0:02:34]} c6 {[%emt 0:01:10]} 8. a4 {[%emt 0:00:32]} h6 {[%emt 0:00:51]} 9. a5 {[%emt 0:13:25]} Rb8 {[%emt 0:01:24]} 10. Be3 {[%emt 0:18:49]} Ng4 {[%emt 0:09:12]} 11. Bd2 {[%emt 0:07:34]} Ngf6 {[%emt 0:12:28]} 12. h3 {[%emt 0:05:21]} b5 {[%emt 0:00:39]} 13. axb6 {[%emt 0:00:08]} axb6 {[%emt 0:00:48]} 14. b4 {[%emt 0:04:55]} b5 {[%emt 0:07:49]} 15. Bf1 {[%emt 0:08:20]} Bb7 {[%emt 0:04:53]} 16. Qb1 {[%emt 0:07:02]} Re8 {[%emt 0:02:59]} 17. Qb3 {[%emt 0:01:39]} exd4 {[%emt 0:07:21]} 18. Nxd4 {[%emt 0:01:18]} Bf8 {[%emt 0:00:21]} 19. Rad1 {[%emt 0:07:08]} Ne5 {[%emt 0:03:35]} 20. f4 {[%emt 0:04:30]} Ng6 {[%emt 0:08:51]} 21. Bd3 {[%emt 0:02:01]} Nh5 {[%emt 0:07:44]} 22. Rf1 {[%emt 0:08:33]} d5 {[%emt 0:07:10]} 23. exd5 {[%emt 0:02:08]} c5 {[%emt 0:07:11]} 24. Bxg6 {[%emt 0:03:51]} fxg6 {[%emt 0:03:12]} 25. Ndxb5 {[%emt 0:00:35]} cxb4 {[%emt 0:00:28]} 26. d6+ {[%emt 0:00:04]} Kh7 {[%emt 0:00:04]} 27. Qxb4 {[%emt 0:00:04]} Ng3 {[%emt 0:02:49]} 28. Rfe1 {[%emt 0:01:03]} Nf5 {[%emt 0:00:47]} 29. Qc5 {[%emt 0:00:49]} Rc8 {[%emt 0:02:31]} 30. Rxe8 {[%emt 0:00:29]} Qxe8 {[%emt 0:00:05]} 31. Qb6 {[%emt 0:00:31]} Qd7 {[%emt 0:01:46]} 32. Bc1 {[%emt 0:00:32]} Nh4 {[%emt 0:02:53]} 33. Rd2 {[%emt 0:00:30]} Ba8 {[%emt 0:00:32]} 34. Kh2 {[%emt 0:00:27]} Nxg2 {[%emt 0:03:11]} 35. Rxg2 {[%emt 0:00:19]} Bxg2 {[%emt 0:00:05]} 36. Kxg2 {[%emt 0:00:01]} Bxd6 {[%emt 0:00:57]} 37. Qxd6 {[%emt 0:01:06]} Qxd6 {[%emt 0:00:05]} 38. Nxd6 {[%emt 0:00:07]} Rxc3 {[%emt 0:00:01]} 39. Ne4 {[%emt 0:00:28]} Rxc2+ {[%emt 0:00:21]} 40. Bd2 {[%emt 0:00:05]} Ra2 {[%emt 0:00:24]} 1/2-1/2

[Event "Belgrade Spring Open 2021"]
[Site "Belgrade"]
[Date "2021.04.05"]
[Round "5.7"]
[White "Janjic, Stefan"]
[Black "Tadic, Stefan"]
[Result "*"]
[ECO "D46"]
[WhiteElo "2176"]
[BlackElo "2416"]
[Annotator "ChessBase"]
[PlyCount "31"]
[EventDate "2021.04.02"]
[EventType "swiss"]
[EventCountry "SRB"]
[SourceTitle "playchess.com"]
[Source "ChessBase"]
[SourceQuality "1"]
[TimeControl "5400+30"]

1. Nf3 {[%emt 0:00:00]} e6 {[%emt 1:30:30]} 2. c4 {[%emt 0:00:00]} Nf6 {[%emt 0:03:55]} 3. Nc3 {[%emt 0:00:00]} d5 {[%emt 0:00:51]} 4. e3 {[%emt 0:00:07]} Bd6 {[%emt 0:03:32]} 5. d4 {[%emt 0:01:13]} c6 {[%emt 0:00:40]} 6. Bd3 {[%emt 0:00:04]} Nbd7 {[%emt 0:01:38]} 7. e4 {[%emt 0:00:06]} dxe4 {[%emt 0:03:52]} 8. Nxe4 {[%emt 1:32:30]} Nxe4 {[%emt 0:01:50]} 9. Bxe4 {[%emt 0:00:04]} Bb4+ {[%emt 0:04:56]} 10. Bd2 {[%emt 0:00:08]} Bxd2+ {[%emt 0:02:03]} 11. Qxd2 {[%emt 0:00:07]} O-O {[%emt 0:01:42]} 12. O-O {[%emt 0:05:14]} c5 {[%emt 0:03:23]} 13. Rfd1 {[%emt 0:01:35]} cxd4 {[%emt 0:12:26]} 14. Qxd4 {[%emt 0:01:56]} Qf6 {[%emt 0:04:05]} 15. Bc2 {[%emt 0:17:48]} a5 {[%emt 0:11:08]} 16. Qd2 {[%emt 0:03:08]} *

[Event "Belgrade Spring Open 2021"]
[Site "Belgrade"]
[Date "2021.04.05"]
[Round "5.7"]
[White "Mitev, Valentin"]
[Black "Pastar, Slaven"]
[Result "1-0"]
[ECO "D46"]
[WhiteElo "2166"]
[BlackElo "2374"]
[Annotator "ChessBase"]
[PlyCount "103"]
[EventDate "2021.04.02"]
[EventType "swiss"]
[EventCountry "SRB"]
[SourceTitle "playchess.com"]
[Source "ChessBase"]
[SourceQuality "1"]
[TimeControl "5400+30"]

1. Nf3 {[%emt 0:00:00]} e6 {[%emt 0:01:38]} 2. c4 {[%emt 0:00:00]} Nf6 {[%emt 0:03:55]} 3. Nc3 {[%emt 0:00:00]} d5 {[%emt 0:00:51]} 4. e3 {[%emt 0:00:07]} Bd6 {[%emt 0:03:32]} 5. d4 {[%emt 0:01:13]} c6 {[%emt 0:00:40]} 6. Bd3 {[%emt 0:00:04]} Nbd7 {[%emt 0:01:38]} 7. e4 {[%emt 0:00:06]} dxe4 {[%emt 0:03:52]} 8. Nxe4 {[%emt 0:00:06]} Nxe4 {[%emt 0:01:50]} 9. Bxe4 {[%emt 0:00:04]} Bb4+ {[%emt 0:04:56]} 10. Bd2 {[%emt 0:00:08]} Bxd2+ {[%emt 0:02:03]} 11. Qxd2 {[%emt 0:00:07]} O-O {[%emt 0:01:42]} 12. O-O {[%emt 0:05:14]} c5 {[%emt 0:03:23]} 13. Rfd1 {[%emt 0:01:35]} cxd4 {[%emt 0:12:26]} 14. Qxd4 {[%emt 0:01:56]} Qf6 {[%emt 0:04:05]} 15. Bc2 {[%emt 0:17:48]} a5 {[%emt 0:11:08]} 16. Qd2 {[%emt 0:03:08]} g6 {[%emt 0:07:15]} 17. Rab1 {[%emt 0:11:50]} Ne5 {[%emt 0:10:33]} 18. Nxe5 {[%emt 0:00:10]} Qxe5 {[%emt 0:00:01]} 19. Qd6 {[%emt 0:01:47]} Qxd6 {[%emt 0:04:14]} 20. Rxd6 {[%emt 0:00:06]} Rb8 {[%emt 0:03:16]} 21. c5 {[%emt 0:05:35]} e5 {[%emt 0:00:50]} 22. a3 {[%emt 0:00:21]} Be6 {[%emt 0:07:59]} 23. b4 {[%emt 0:04:18]} axb4 {[%emt 0:00:01]} 24. axb4 {[%emt 0:00:01]} Rfe8 {[%emt 0:01:21]} 25. h3 {[%emt 0:06:17]} Rbd8 {[%emt 0:00:57]} 26. Rbd1 {[%emt 0:00:52]} Rxd6 {[%emt 0:01:56]} 27. Rxd6 {[%emt 0:00:01]} f5 {[%emt 0:01:36]} 28. Ba4 {[%emt 0:00:51]} Re7 {[%emt 0:00:17]} 29. b5 {[%emt 0:02:29]} Bc4 {[%emt 0:04:14]} 30. b6 {[%emt 0:00:11]} e4 {[%emt 0:01:32]} 31. Bd7 {[%emt 0:16:32]} Ba6 {[%emt 0:00:47]} 32. Bc8 {[%emt 0:00:39]} Bb5 {[%emt 0:00:54]} 33. g4 {[%emt 0:15:05]} Kg7 {[%emt 0:00:05]} 34. g5 {[%emt 0:03:51]} f4 {[%emt 0:00:40]} 35. c6 {[%emt 0:01:37]} e3 {[%emt 0:00:50]} 36. fxe3 {[%emt 0:00:16]} bxc6 {[%emt 0:00:30]} 37. exf4 {[%emt 0:01:03]} Re1+ {[%emt 0:00:24]} 38. Kf2 {[%emt 0:00:01]} Re2+ {[%emt 0:00:26]} 39. Kf3 {[%emt 0:00:03]} Rb2 {[%emt 0:00:12]} 40. Ke3 {[%emt 0:02:32]} c5 {[%emt 0:00:40]} 41. b7 {[%emt 0:00:36]} Bf1 {[%emt 0:00:37]} 42. Rd7+ {[%emt 0:00:40]} Kf8 {[%emt 0:00:39]} 43. Rxh7 {[%emt 0:00:18]} Bg2 {[%emt 0:00:32]} 44. Rc7 {[%emt 0:00:41]} Rb3+ {[%emt 0:00:25]} 45. Kf2 {[%emt 0:00:12]} Rb2+ {[%emt 0:00:18]} 46. Kg3 {[%emt 0:00:00]} Be4 {[%emt 0:00:45]} 47. f5 {[%emt 0:00:19]} gxf5 {[%emt 0:00:15]} 48. Kf4 {[%emt 0:00:12]} Bg2 {[%emt 0:00:46]} 49. g6 {[%emt 0:00:13]} Bd5 {[%emt 0:00:32]} 50. Ke5 {[%emt 0:00:23]} Bg8 {[%emt 0:00:30]} 51. Bxf5 {[%emt 0:00:26]} Re2+ {[%emt 0:00:31]} 52. Be4 {[%emt 0:00:06]} 1-0

[Event "Belgrade Spring Open 2021"]
[Site "Belgrade"]
[Date "2021.04.05"]
[Round "5.8"]
[White "Janjic, Stefan"]
[Black "Tadic, Stefan"]
[Result "1-0"]
[ECO "A48"]
[WhiteElo "2176"]
[BlackElo "2416"]
[Annotator "ChessBase"]
[PlyCount "75"]
[EventDate "2021.04.02"]
[EventType "swiss"]
[EventCountry "SRB"]
[SourceTitle "playchess.com"]
[Source "ChessBase"]
[SourceQuality "1"]
[TimeControl "5400+30"]

1. d4 {[%emt 0:02:15]} Nf6 {[%emt 0:00:00]} 2. Nf3 {[%emt 0:00:07]} g6 {[%emt 0:00:00]} 3. Bg5 {[%emt 0:00:11]} Bg7 {[%emt 0:00:00]} 4. Nbd2 {[%emt 0:00:13]} O-O {[%emt 0:00:13]} 5. e4 {[%emt 0:00:23]} d5 {[%emt 0:00:37]} 6. exd5 {[%emt 0:01:07]} Nxd5 {[%emt 0:00:34]} 7. Nb3 {[%emt 0:00:43]} a5 {[%emt 0:00:11]} 8. a4 {[%emt 0:00:16]} b6 {[%emt 0:05:44]} 9. c3 {[%emt 0:04:06]} h6 {[%emt 0:01:01]} 10. Bc1 {[%emt 0:04:16]} Nd7 {[%emt 0:01:36]} 11. Bc4 {[%emt 0:01:39]} Bb7 {[%emt 0:02:31]} 12. O-O {[%emt 0:00:59]} e6 {[%emt 0:01:24]} 13. Re1 {[%emt 0:02:25]} Qf6 {[%emt 0:09:51]} 14. Nbd2 {[%emt 0:04:50]} g5 {[%emt 0:11:14]} 15. Ne4 {[%emt 0:05:18]} Qg6 {[%emt 0:02:21]} 16. Ng3 {[%emt 0:11:59]} f5 {[%emt 0:07:06]} 17. Bb5 {[%emt 0:02:38]} c6 {[%emt 0:06:00]} 18. Bc4 {[%emt 0:00:57]} g4 {[%emt 0:01:19]} 19. Ne5 {[%emt 0:08:57]} Nxe5 {[%emt 0:00:29]} 20. dxe5 {[%emt 0:01:39]} Rad8 {[%emt 0:01:31]} 21. Qc2 {[%emt 0:04:28]} c5 {[%emt 0:03:08]} 22. Bxd5 {[%emt 0:01:47]} Rxd5 {[%emt 0:01:19]} 23. Bf4 {[%emt 0:00:52]} h5 {[%emt 0:11:56]} 24. Qb3 {[%emt 0:03:20]} h4 {[%emt 0:00:40]} 25. Nf1 {[%emt 0:02:32]} Bh6 {[%emt 0:04:51]} 26. Bxh6 {[%emt 0:03:12]} Qxh6 {[%emt 0:00:01]} 27. Qxb6 {[%emt 0:00:14]} Ba8 {[%emt 0:02:38]} 28. Rad1 {[%emt 0:01:27]} h3 {[%emt 0:05:18]} 29. Rxd5 {[%emt 0:00:03]} Bxd5 {[%emt 0:00:07]} 30. Ne3 {[%emt 0:03:49]} Be4 {[%emt 0:00:31]} 31. Rd1 {[%emt 0:07:08]} g3 {[%emt 0:10:28]} 32. hxg3 {[%emt 0:06:46]} f4 {[%emt 0:05:34]} 33. Ng4 {[%emt 0:02:42]} Qh5 {[%emt 0:01:44]} 34. Qxe6+ {[%emt 0:13:42]} Kh8 {[%emt 0:05:03]} 35. gxh3 {[%emt 0:00:00]} Qxh3 {[%emt 0:00:00]} 36. Qh6+ {[%emt 0:00:00]} Qxh6 {[%emt 0:00:00]} 37. Nxh6 {[%emt 0:00:00]} Bf3 {[%emt 0:00:18]} 38. Rd8 {[%emt 0:02:00]} 1-0

[Event "Belgrade Spring Open 2021"]
[Site "Belgrade"]
[Date "2021.04.05"]
[Round "5.8"]
[White "Mitev, Valentin"]
[Black "Pastar, Slaven"]
[Result "*"]
[ECO "A48"]
[WhiteElo "2166"]
[BlackElo "2374"]
[Annotator "ChessBase"]
[PlyCount "33"]
[EventDate "2021.04.02"]
[EventType "swiss"]
[EventCountry "SRB"]
[SourceTitle "playchess.com"]
[Source "ChessBase"]
[SourceQuality "1"]
[TimeControl "5400+30"]

1. d4 {[%emt 0:02:15]} Nf6 {[%emt 0:00:00]} 2. Nf3 {[%emt 0:00:07]} g6 {[%emt 0:00:00]} 3. Bg5 {[%emt 0:00:11]} Bg7 {[%emt 0:00:00]} 4. Nbd2 {[%emt 0:00:13]} O-O {[%emt 0:00:13]} 5. e4 {[%emt 0:00:23]} d5 {[%emt 0:00:37]} 6. exd5 {[%emt 0:01:07]} Nxd5 {[%emt 0:00:34]} 7. Nb3 {[%emt 1:29:14]} a5 {[%emt 0:00:11]} 8. a4 {[%emt 0:00:16]} b6 {[%emt 0:05:44]} 9. c3 {[%emt 0:04:06]} h6 {[%emt 0:01:01]} 10. Bc1 {[%emt 0:04:16]} Nd7 {[%emt 0:01:36]} 11. Bc4 {[%emt 0:01:39]} Bb7 {[%emt 0:02:31]} 12. O-O {[%emt 0:00:59]} e6 {[%emt 0:01:24]} 13. Re1 {[%emt 0:02:25]} Qf6 {[%emt 0:09:51]} 14. Nbd2 {[%emt 0:04:50]} g5 {[%emt 0:11:14]} 15. Ne4 {[%emt 0:05:18]} Qg6 {[%emt 0:02:21]} 16. Ng3 {[%emt 0:11:59]} f5 {[%emt 0:07:06]} 17. Bb5 {[%emt 0:57:43]} *

[Event "Belgrade Spring Open 2021"]
[Site "Belgrade"]
[Date "2021.04.05"]
[Round "5.10"]
[White "Lajthajm, Borko"]
[Black "Kanov, Nikola"]
[Result "1-0"]
[ECO "C60"]
[WhiteElo "2359"]
[BlackElo "2140"]
[Annotator "ChessBase"]
[PlyCount "121"]
[EventDate "2021.04.02"]
[EventType "swiss"]
[EventCountry "SRB"]
[SourceTitle "playchess.com"]
[Source "ChessBase"]
[SourceQuality "1"]
[TimeControl "5400+30"]

1. e4 {[%emt 0:00:00]} e5 {[%emt 0:00:00]} 2. Nf3 {[%emt 0:00:00]} Nc6 {[%emt 0:00:00]} 3. Bb5 {[%emt 0:00:00]} a6 {[%emt 0:00:26]} 4. Ba4 {[%emt 0:00:00]} Nge7 {[%emt 0:00:58]} 5. O-O {[%emt 0:00:33]} g6 {[%emt 0:00:36]} 6. d4 {[%emt 0:00:31]} exd4 {[%emt 0:01:04]} 7. Nxd4 {[%emt 0:00:18]} Bg7 {[%emt 0:00:50]} 8. c3 {[%emt 0:00:25]} O-O {[%emt 0:01:36]} 9. Nxc6 {[%emt 0:01:34]} Nxc6 {[%emt 0:01:15]} 10. Bf4 {[%emt 0:01:15]} b5 {[%emt 0:09:48]} 11. Bb3 {[%emt 0:01:11]} Na5 {[%emt 0:02:46]} 12. Bd5 {[%emt 0:00:19]} c6 {[%emt 0:06:35]} 13. Bb3 {[%emt 0:01:42]} Re8 {[%emt 0:01:15]} 14. Nd2 {[%emt 0:06:02]} d5 {[%emt 0:02:38]} 15. exd5 {[%emt 0:00:36]} cxd5 {[%emt 0:01:04]} 16. Nf3 {[%emt 0:02:01]} Nc4 {[%emt 0:01:15]} 17. Bg5 {[%emt 0:05:07]} Qc7 {[%emt 0:03:17]} 18. Qc1 {[%emt 0:00:26]} Bb7 {[%emt 0:15:37]} 19. Nd4 {[%emt 0:01:33]} Rac8 {[%emt 0:02:29]} 20. Rd1 {[%emt 0:01:55]} Qb6 {[%emt 0:07:55]} 21. Rb1 {[%emt 0:02:06]} b4 {[%emt 0:02:44]} 22. Ba4 {[%emt 0:00:27]} Re4 {[%emt 0:02:21]} 23. Bd7 {[%emt 0:05:58]} Rb8 {[%emt 0:05:35]} 24. Bh6 {[%emt 0:04:35]} Rd8 {[%emt 0:08:03]} 25. Bxg7 {[%emt 0:03:54]} Kxg7 {[%emt 0:00:47]} 26. Ba4 {[%emt 0:00:50]} Rc8 {[%emt 0:01:55]} 27. Bc2 {[%emt 0:01:32]} Re5 {[%emt 0:02:29]} 28. Qf4 {[%emt 0:01:12]} Rce8 {[%emt 0:01:26]} 29. Nf3 {[%emt 0:00:56]} Re2 {[%emt 0:00:59]} 30. Qd4+ {[%emt 0:00:10]} Qxd4 {[%emt 0:00:13]} 31. Nxd4 {[%emt 0:00:06]} R2e7 {[%emt 0:00:20]} 32. cxb4 {[%emt 0:00:10]} Nxb2 {[%emt 0:01:12]} 33. Rdc1 {[%emt 0:05:29]} Nc4 {[%emt 0:01:15]} 34. Bd3 {[%emt 0:01:01]} Rc8 {[%emt 0:02:15]} 35. a4 {[%emt 0:06:02]} Nb6 {[%emt 0:10:49]} 36. a5 {[%emt 0:01:36]} Na4 {[%emt 0:00:42]} 37. Rxc8 {[%emt 0:46:58]} Bxc8 38. Rc1 {[%emt 0:00:00]} Nb2 {[%emt 0:00:59]} 39. Bf1 {[%emt 0:00:00]} Nc4 {[%emt 0:00:16]} 40. f3 {[%emt 0:00:00]} Rb7 {[%emt 0:00:48]} 41. Bxc4 {[%emt 0:00:00]} Rc7 {[%emt 0:00:17]} 42. Kf2 {[%emt 0:00:00]} dxc4 {[%emt 0:00:55]} 43. Ke3 {[%emt 0:00:00]} Kf6 {[%emt 0:00:21]} 44. Kd2 {[%emt 0:00:00]} Bb7 {[%emt 0:01:30]} 45. Kc3 {[%emt 0:00:00]} Bd5 {[%emt 0:00:28]} 46. Re1 {[%emt 0:00:00]} Rc8 {[%emt 0:00:55]} 47. b5 {[%emt 0:00:00]} axb5 {[%emt 0:00:35]} 48. Nxb5 {[%emt 0:00:00]} Rb8 {[%emt 0:00:17]} 49. Nd4 {[%emt 0:00:00]} g5 {[%emt 0:00:51]} 50. a6 {[%emt 0:00:00]} Ra8 {[%emt 0:01:07]} 51. Ra1 {[%emt 0:00:00]} Ke7 {[%emt 0:00:11]} 52. a7 {[%emt 0:00:00]} Kd6 {[%emt 0:01:13]} 53. Ra5 {[%emt 0:00:00]} f6 {[%emt 0:00:19]} 54. Nf5+ {[%emt 0:00:00]} Ke6 {[%emt 0:00:03]} 55. Ne3 {[%emt 0:00:00]} Bb7 {[%emt 0:00:32]} 56. Nxc4 {[%emt 0:00:00]} Rc8 {[%emt 0:00:26]} 57. Kd4 {[%emt 0:00:00]} Rd8+ {[%emt 0:00:13]} 58. Ke3 {[%emt 0:00:00]} Ba8 {[%emt 0:00:37]} 59. Nb6 {[%emt 0:00:00]} Kd6 {[%emt 0:00:11]} 60. Nxa8 {[%emt 0:00:00]} Rxa8 {[%emt 0:00:03]} 61. Ke4 {[%emt 0:12:00]} 1-0

[Event "Belgrade Spring Open 2021"]
[Site "Belgrade"]
[Date "2021.04.06"]
[Round "6.2"]
[White "Sargsyan, Shant"]
[Black "Milanovic, Slavisa"]
[Result "1-0"]
[ECO "B42"]
[WhiteElo "2598"]
[BlackElo "2301"]
[Annotator "ChessBase"]
[PlyCount "65"]
[EventDate "2021.04.02"]
[EventType "swiss"]
[EventCountry "SRB"]
[SourceTitle "playchess.com"]
[Source "ChessBase"]
[SourceQuality "1"]
[TimeControl "5400+30"]

1. d4 {[%emt 0:00:00]} e6 {[%emt 1:30:30]} 2. Nf3 {[%emt 1:31:00]} c5 {[%emt 0:00:30]} 3. e4 {[%emt 0:00:30]} cxd4 {[%emt 0:00:30]} 4. Nxd4 {[%emt 0:00:30]} a6 {[%emt 0:00:30]} 5. c4 {[%emt 0:00:30]} d6 {[%emt 0:00:30]} 6. Nc3 {[%emt 0:00:30]} Nf6 {[%emt 0:00:30]} 7. Bd3 {[%emt 0:00:30]} b6 {[%emt 0:00:30]} 8. O-O {[%emt 0:00:30]} Bb7 {[%emt 0:00:30]} 9. f4 {[%emt 0:00:30]} Nbd7 {[%emt 0:00:30]} 10. b4 {[%emt 0:00:30]} Rc8 {[%emt 0:00:30]} 11. Bb2 {[%emt 0:00:30]} Qc7 {[%emt 0:00:00]} 12. Qe1 {[%emt 0:00:30]} Be7 {[%emt 0:01:00]} 13. Qg3 {[%emt 0:00:30]} g6 {[%emt 0:00:30]} 14. Rae1 {[%emt 0:00:00]} Nh5 {[%emt 0:00:00]} 15. Qh3 {[%emt 0:00:00]} O-O {[%emt 0:00:00]} 16. g4 {[%emt 0:01:30]} Ng7 {[%emt 0:01:30]} 17. a3 e5 {[%emt 0:00:30]} 18. Nd5 {[%emt 0:01:00]} Qd8 {[%emt 0:00:30]} 19. Nf3 {[%emt 0:00:30]} f6 {[%emt 0:00:30]} 20. f5 {[%emt 0:00:30]} g5 {[%emt 0:00:30]} 21. Qg3 {[%emt 0:00:30]} h6 {[%emt 0:00:30]} 22. h4 {[%emt 0:00:30]} Bxd5 {[%emt 0:00:30]} 23. exd5 {[%emt 0:00:30]} b5 {[%emt 0:00:30]} 24. cxb5 {[%emt 0:00:30]} axb5 {[%emt 0:00:30]} 25. Kg2 {[%emt 0:00:30]} Nb6 {[%emt 0:00:30]} 26. hxg5 {[%emt 0:00:30]} hxg5 {[%emt 0:00:30]} 27. Bxb5 {[%emt 0:00:30]} Nxd5 {[%emt 0:00:30]} 28. Nxg5 {[%emt 0:00:30]} Rc2+ {[%emt 0:00:30]} 29. Re2 {[%emt 0:00:30]} Qa8 {[%emt 0:00:30]} 30. Rxc2 {[%emt 0:00:30]} Nf4+ {[%emt 0:00:30]} 31. Kh2 {[%emt 0:00:30]} fxg5 {[%emt 0:00:30]} 32. Bc6 {[%emt 0:00:30]} Qa7 {[%emt 0:00:30]} 33. Rxf4 {[%emt 0:00:30]} 1-0

[Event "Belgrade Spring Open 2021"]
[Site "Belgrade"]
[Date "2021.04.06"]
[Round "6.3"]
[White "Sturt, Raven"]
[Black "Janjic, Stefan"]
[Result "1-0"]
[ECO "C09"]
[WhiteElo "2490"]
[BlackElo "2176"]
[Annotator "ChessBase"]
[PlyCount "107"]
[EventDate "2021.04.02"]
[EventType "swiss"]
[EventCountry "SRB"]
[SourceTitle "playchess.com"]
[Source "ChessBase"]
[SourceQuality "1"]
[TimeControl "5400+30"]

1. e4 {[%emt 0:00:00]} e6 {[%emt 0:01:43]} 2. d4 {[%emt 0:00:00]} d5 {[%emt 0:00:06]} 3. Nd2 {[%emt 0:00:00]} c5 {[%emt 0:01:05]} 4. Ngf3 {[%emt 0:00:54]} Nc6 {[%emt 0:01:53]} 5. dxc5 {[%emt 0:10:52]} Bxc5 {[%emt 0:04:43]} 6. Nb3 {[%emt 0:01:59]} Bb6 {[%emt 0:01:52]} 7. exd5 {[%emt 0:02:40]} exd5 {[%emt 0:01:16]} 8. Bg5 {[%emt 0:00:54]} Nf6 {[%emt 0:09:44]} 9. Bd3 {[%emt 0:03:49]} O-O {[%emt 0:00:36]} 10. O-O {[%emt 0:00:25]} Bg4 {[%emt 0:02:42]} 11. h3 {[%emt 0:04:21]} Bh5 {[%emt 0:02:07]} 12. Re1 {[%emt 0:09:20]} Qd6 {[%emt 0:02:40]} 13. Be3 {[%emt 0:13:04]} Ne5 {[%emt 0:06:20]} 14. g4 {[%emt 0:16:04]} Nxd3 {[%emt 0:00:38]} 15. cxd3 {[%emt 0:00:11]} Bg6 {[%emt 0:11:29]} 16. Qd2 {[%emt 0:02:44]} Bxe3 {[%emt 0:02:54]} 17. Qxe3 {[%emt 0:01:30]} Qb4 {[%emt 0:03:54]} 18. Ne5 {[%emt 0:01:07]} Rfe8 {[%emt 0:05:30]} 19. Qd4 {[%emt 0:00:24]} Qxd4 {[%emt 0:18:19]} 20. Nxd4 {[%emt 0:00:02]} Re7 {[%emt 0:01:51]} 21. f4 {[%emt 0:09:26]} Rae8 {[%emt 0:01:56]} 22. Kf2 {[%emt 0:00:07]} h6 {[%emt 0:01:31]} 23. Re2 {[%emt 0:03:25]} Rd8 {[%emt 0:06:50]} 24. Rae1 {[%emt 0:00:27]} Bh7 {[%emt 0:00:56]} 25. Ndf3 {[%emt 0:06:33]} Ne8 {[%emt 0:02:35]} 26. f5 {[%emt 0:01:21]} f6 {[%emt 0:00:41]} 27. Ng6 {[%emt 0:00:37]} Rxe2+ {[%emt 0:00:13]} 28. Rxe2 {[%emt 0:00:03]} Bxg6 {[%emt 0:00:03]} 29. fxg6 {[%emt 0:00:02]} Kf8 {[%emt 0:02:57]} 30. Nd4 {[%emt 0:00:02]} Rc8 {[%emt 0:01:16]} 31. Ne6+ {[%emt 0:01:28]} Kg8 {[%emt 0:00:18]} 32. Nd4 {[%emt 0:01:12]} Kf8 {[%emt 0:00:06]} 33. Nf5 {[%emt 0:00:04]} Rc7 {[%emt 0:00:39]} 34. Ke3 {[%emt 0:01:45]} Rd7 {[%emt 0:01:10]} 35. Kd4 {[%emt 0:02:23]} Nd6 {[%emt 0:01:03]} 36. a4 {[%emt 0:00:58]} Ne8 {[%emt 0:02:23]} 37. h4 {[%emt 0:01:59]} Nc7 {[%emt 0:00:20]} 38. h5 {[%emt 0:00:01]} Na6 {[%emt 0:00:47]} 39. Re6 {[%emt 0:00:27]} b6 {[%emt 0:01:40]} 40. Rd6 {[%emt 0:02:48]} Rxd6 {[%emt 0:00:37]} 41. Nxd6 {[%emt 0:00:02]} Nc5 {[%emt 0:00:07]} 42. a5 {[%emt 0:01:17]} Ke7 {[%emt 0:00:51]} 43. Nf5+ {[%emt 0:00:19]} Kf8 {[%emt 0:00:03]} 44. axb6 {[%emt 0:00:12]} axb6 {[%emt 0:00:04]} 45. Ne3 {[%emt 0:00:09]} Na4 {[%emt 0:00:16]} 46. b3 {[%emt 0:00:41]} Nc5 {[%emt 0:00:12]} 47. b4 {[%emt 0:00:02]} Ne6+ {[%emt 0:01:02]} 48. Kxd5 {[%emt 0:00:09]} Nf4+ {[%emt 0:00:03]} 49. Kc6 {[%emt 0:00:39]} Nxd3 {[%emt 0:00:14]} 50. b5 {[%emt 0:00:03]} Ke7 {[%emt 0:00:53]} 51. Nf5+ {[%emt 0:00:06]} Kd8 {[%emt 0:00:53]} 52. Nxg7 {[%emt 0:00:06]} Ne5+ {[%emt 0:00:10]} 53. Kxb6 {[%emt 0:00:02]} Nxg4 {[%emt 0:00:11]} 54. Nf5 {[%emt 0:00:09]} 1-0

[Event "Belgrade Spring Open 2021"]
[Site "Belgrade"]
[Date "2021.04.06"]
[Round "6.4"]
[White "Kamer, Kayra"]
[Black "Kazakouski, Valery"]
[Result "1-0"]
[ECO "C47"]
[WhiteElo "2339"]
[BlackElo "2476"]
[Annotator "ChessBase"]
[PlyCount "93"]
[EventDate "2021.04.02"]
[EventType "swiss"]
[EventCountry "SRB"]
[SourceTitle "playchess.com"]
[Source "ChessBase"]
[SourceQuality "1"]
[TimeControl "5400+30"]

1. e4 {[%emt 0:03:34]} e5 {[%emt 0:00:00]} 2. Nf3 {[%emt 0:00:12]} Nc6 {[%emt 0:00:05]} 3. Nc3 {[%emt 0:00:45]} Nf6 {[%emt 0:00:10]} 4. a4 {[%emt 0:00:38]} Bb4 {[%emt 0:03:57]} 5. Bd3 {[%emt 0:00:19]} d6 {[%emt 0:01:43]} 6. Nd5 {[%emt 0:02:51]} Bc5 {[%emt 0:04:31]} 7. c3 {[%emt 0:01:10]} a6 {[%emt 0:02:35]} 8. Bc2 {[%emt 0:04:22]} Ba7 {[%emt 0:03:17]} 9. O-O {[%emt 0:03:09]} h6 {[%emt 0:05:30]} 10. d4 {[%emt 0:06:28]} Bg4 {[%emt 0:06:59]} 11. Ne3 {[%emt 0:05:19]} Bxf3 {[%emt 0:06:22]} 12. Qxf3 {[%emt 0:00:03]} exd4 {[%emt 0:00:24]} 13. Nf5 {[%emt 0:00:03]} g6 {[%emt 0:01:55]} 14. Nxd4 {[%emt 0:11:25]} Nxd4 {[%emt 0:07:22]} 15. cxd4 {[%emt 0:00:10]} Bxd4 {[%emt 0:00:08]} 16. Rd1 {[%emt 0:06:53]} c5 {[%emt 0:04:26]} 17. Bf4 {[%emt 0:16:28]} Qe7 {[%emt 0:04:39]} 18. b4 {[%emt 0:01:47]} Nd7 {[%emt 0:12:12]} 19. Rab1 {[%emt 0:09:14]} Ne5 {[%emt 0:03:47]} 20. Qh3 {[%emt 0:02:35]} Rd8 {[%emt 0:09:08]} 21. bxc5 {[%emt 0:04:49]} dxc5 {[%emt 0:01:27]} 22. Qg3 {[%emt 0:06:06]} Nc6 {[%emt 0:01:23]} 23. Bc7 {[%emt 0:03:28]} Rd7 {[%emt 0:01:56]} 24. Bf4 {[%emt 0:10:12]} g5 {[%emt 0:05:44]} 25. Bd2 {[%emt 0:00:00]} Be5 {[%emt 0:01:06]} 26. Qg4 {[%emt 0:00:00]} Qe6 {[%emt 0:00:32]} 27. Qh5 {[%emt 0:00:00]} Nd4 {[%emt 0:01:36]} 28. Bd3 {[%emt 0:00:00]} Qg6 {[%emt 0:04:12]} 29. Qxg6 {[%emt 0:00:00]} fxg6 {[%emt 0:00:01]} 30. Bc4 {[%emt 0:00:00]} Ke7 {[%emt 0:00:41]} 31. Be3 {[%emt 0:00:00]} Rc8 {[%emt 0:01:41]} 32. Kf1 {[%emt 0:00:00]} Rcc7 {[%emt 0:01:42]} 33. Rb6 {[%emt 0:00:39]} Rd6 {[%emt 0:00:50]} 34. Rdb1 {[%emt 0:01:53]} Nc2 {[%emt 0:02:01]} 35. Rxb7 {[%emt 0:01:54]} Nxe3+ {[%emt 0:00:55]} 36. fxe3 {[%emt 0:00:01]} Rxb7 {[%emt 0:00:53]} 37. Rxb7+ {[%emt 0:00:03]} Kd8 {[%emt 0:00:06]} 38. Ke2 {[%emt 0:01:26]} Bxh2 {[%emt 0:00:46]} 39. Bd5 {[%emt 0:00:18]} Kc8 {[%emt 0:01:09]} 40. Rh7 {[%emt 0:00:21]} h5 {[%emt 0:00:49]} 41. Kd3 {[%emt 0:00:15]} Rb6 {[%emt 0:00:49]} 42. Kc4 {[%emt 0:00:09]} Bg1 {[%emt 0:00:41]} 43. a5 {[%emt 0:01:16]} Rb5 {[%emt 0:00:35]} 44. Bc6 {[%emt 0:01:05]} Rb4+ {[%emt 0:00:39]} 45. Kxc5 {[%emt 0:00:06]} Rb2 {[%emt 0:00:21]} 46. Kd6 {[%emt 0:00:21]} Rd2+ {[%emt 0:00:41]} 47. Bd5 {[%emt 0:00:06]} 1-0